bitfinex/quotes_ETHUSD_20220220
["timestamp","ask_amount","ask_price","bid_price","bid_amount"]
[1645343251965,1.92456,2648.0,2645.9,1.1557]
[1645343251966,0.38178874,2647.8,2645.9,1.1557]
[1645343252166,2.27079,2647.1,2645.9,1.1557]
[1645343252364,2.34569,2647.1,2645.9,1.1557]
[1645343252567,1.754,2647.1,2646.2,1.03900126]
[1645343252867,1.754,2647.1,2645.9,1.1557]
[1645343252868,1.054,2647.1,2645.9,1.1557]
[1645343253064,0.0026888,2646.6,2646.0,11.55]
[1645343253268,0.0026888,2646.6,2645.9,1.1557]
[1645343253862,0.0026888,2646.6,2646.0,0.85911093]
[1645343254062,0.454,2648.1,2646.0,0.85911093]
[1645343254063,3.5,2647.9,2646.5,0.86030264]
[1645343254261,0.454,2648.1,2646.5,0.86030264]
[1645343254461,0.3791,2648.0,2646.9,0.89543076]
[1645343254663,7.6991,2648.0,2646.0,11.55]
[1645343254913,0.94547,2647.8,2646.1,0.1888]
[1645343255114,1.54547,2647.8,2646.1,0.1888]
[1645343255612,0.00269676,2647.1,2646.1,0.1888]
[1645343255816,1.54547,2647.8,2647.4,0.00539352]
[1645343256416,0.3,2647.8,2647.4,0.00539352]
[1645343256617,0.454,2648.4,2647.4,0.00539352]
[1645343256817,1.93301188,2648.8,2647.7,1.07343317]
[1645343257014,0.04263188,2648.8,2647.7,1.07343317]
[1645343257215,0.04206346,2648.7,2648.1,0.96716625]
[1645343257414,0.04206346,2648.7,2647.5,0.32689997]
[1645343257615,0.04149504,2648.6,2647.5,0.32689997]
[1645343258013,0.04092661,2648.5,2647.5,0.32689997]
[1645343258418,1.0,2648.6,2647.8,0.97915015]
[1645343258419,0.04035819,2648.4,2647.8,0.97915015]
[1645343258870,0.04092661,2648.5,2648.2,1.02898964]
[1645343259077,0.04092661,2648.5,2647.5,0.32689997]
[1645343259078,7.32,2648.7,2648.5,0.08185322]
[1645343260371,0.00255907,2648.7,2648.5,0.08185322]
[1645343261271,0.0156378,2649.3,2648.5,0.08185322]
[1645343261473,0.00271256,2648.7,2648.5,0.08185322]
[1645343262412,1.3156378,2649.3,2648.5,0.08185322]
[1645343262612,0.00271256,2648.7,2648.5,0.08185322]
[1645343263012,0.00271256,2648.7,2648.5,0.03185322]
[1645343263619,0.00096193,2648.7,2648.5,0.03185322]
[1645343265117,0.00365572,2648.7,2648.5,0.03185322]
[1645343266180,0.00096193,2648.7,2648.5,0.03185322]
[1645343266372,0.00347986,2648.7,2648.5,0.03185322]
[1645343267176,0.00096193,2648.7,2648.5,0.03185322]
[1645343267572,0.00347986,2648.7,2648.5,0.03185322]
[1645343268373,0.00096193,2648.7,2648.5,0.03185322]
[1645343268781,0.00347986,2648.7,2648.5,0.03185322]
[1645343269573,0.00096193,2648.7,2648.5,0.03185322]
[1645343270014,0.00347986,2648.7,2648.5,0.03185322]
[1645343270815,0.00096193,2648.7,2648.5,0.03185322]
[1645343271214,0.00340915,2648.7,2648.5,0.03185322]
[1645343272420,0.00325569,2648.7,2648.5,0.03185322]
[1645343272923,3.50325569,2648.7,2648.5,0.03185322]
[1645343273320,29.0,2648.5,2647.4,0.00539352]
[1645343273522,3.5,2648.4,2647.4,0.00539352]
[1645343273773,5.1,2648.4,2647.4,0.00539352]
[1645343273980,0.00243209,2648.7,2647.5,1.67261392]
[1645343274176,0.00243209,2648.7,2647.7,11.55]
[1645343274376,0.00243209,2648.7,2647.8,1.60625612]
[1645343274674,0.945,2649.1,2647.9,1.60625612]
[1645343274876,0.945,2649.1,2648.0,1.60625612]
[1645343275077,0.945,2649.1,2647.5,2.4814578]
[1645343275275,4.254,2649.0,2647.5,2.4814578]
[1645343275475,4.254,2649.0,2647.6,1.60619981]
[1645343275676,0.94522,2648.6,2647.6,1.60619981]
[1645343275874,2.24522,2648.6,2647.6,1.60619981]
[1645343276080,1.6,2648.6,2647.6,1.60619981]
[1645343276277,0.6,2648.6,2647.6,2.72878344]
[1645343276479,0.6,2648.6,2647.7,1.60619981]
[1645343276677,0.3,2648.6,2647.7,1.60619981]
[1645343276876,0.3,2648.9,2648.0,1.00220551]
[1645343277080,0.3,2649.0,2648.7,0.89999999]
[1645343277277,7.3356378,2649.2,2648.7,0.89999999]
[1645343277278,7.32,2649.2,2648.7,0.89999999]
[1645343277716,7.32,2649.2,2648.8,1.60588496]
[1645343277917,7.32,2649.2,2648.7,0.89999999]
[1645343278319,7.3356378,2649.2,2648.7,0.89999999]
[1645343278520,0.00269924,2649.1,2648.7,0.89999999]
[1645343279127,1.00269924,2649.1,2648.7,0.89999999]
[1645343279323,1.0,2649.1,2648.7,0.89999999]
[1645343279521,0.00269924,2649.0,2648.7,0.89999999]
[1645343280523,7.3356378,2649.2,2648.7,0.89999999]
[1645343280723,0.00269925,2649.0,2648.7,0.89999999]
[1645343281770,1.0,2649.1,2648.7,0.89999999]
[1645343281966,0.00269925,2649.0,2648.7,0.89999999]
[1645343282167,0.94773925,2649.0,2648.7,0.89999999]
[1645343282470,1.24773925,2649.0,2648.7,0.89999999]
[1645343282866,1.24504,2649.0,2648.7,0.89999999]
[1645343283270,1.24773925,2649.0,2648.7,0.89999999]
[1645343283667,1.24854371,2649.0,2648.7,0.89999999]
[1645343284068,1.24584446,2649.0,2648.7,0.89999999]
[1645343284472,1.24854371,2649.0,2648.7,0.89999999]
[1645343285321,1.24584446,2649.0,2648.7,0.89999999]
[1645343285515,1.24854371,2649.0,2648.7,0.89999999]
[1645343286518,1.24584446,2649.0,2648.7,0.89999999]
[1645343286722,1.24854371,2649.0,2648.7,0.89999999]
[1645343286925,3.954,2648.9,2648.7,0.89999999]
[1645343287121,1.054,2648.9,2648.7,0.89999999]
[1645343287326,17.5,2648.7,2647.5,0.1887]
[1645343287521,0.94529,2648.5,2647.0,2.29847118]
[1645343287721,0.94529,2648.5,2647.0,1.2251]
[1645343287722,3.954,2648.4,2647.0,1.2251]
[1645343288222,0.30269929,2648.2,2646.8,0.6887]
[1645343288523,0.454,2648.1,2646.8,0.6887]
[1645343288765,1.454,2648.1,2646.9,0.86458347]
[1645343289168,0.94545,2648.0,2647.3,0.91577553]
[1645343289368,0.45669931,2647.9,2646.8,0.5]
[1645343289574,0.45669931,2647.9,2646.9,0.1887]
[1645343289767,0.75669931,2647.9,2646.9,3.6887]
[1645343290167,1.054,2647.9,2646.9,3.6887]
[1645343290366,1.054,2647.9,2647.2,1.14168629]
[1645343290567,0.00269932,2647.8,2647.2,1.14168629]
[1645343290969,0.00269932,2647.8,2647.6,1.17770447]
[1645343291367,1.454,2648.6,2647.6,1.17770447]
[1645343291568,0.002682,2647.8,2647.6,1.17770447]
[1645343292616,7.32,2648.7,2647.6,1.17770447]
[1645343292815,0.002682,2647.8,2647.6,1.17770447]
[1645343293719,0.94522,2648.5,2647.6,1.17770447]
[1645343293918,0.94522,2648.5,2647.6,4.67770447]
[1645343294118,0.002682,2647.8,2647.6,4.67770447]
[1645343294322,0.002682,2647.8,2647.6,1.17770447]
[1645343295019,1.54522,2648.5,2647.6,1.17770447]
[1645343295216,0.00269932,2647.8,2647.5,0.00898036]
[1645343296170,1.99939,2648.0,2647.5,0.00898036]
[1645343296569,0.00269932,2647.8,2647.5,0.00898036]
[1645343297666,1.99939,2648.0,2647.5,0.00898036]
[1645343297866,0.00269932,2647.8,2647.5,0.00898036]
[1645343298667,1.054,2648.0,2647.5,0.00898036]
[1645343298866,0.00266468,2647.8,2647.5,0.00898036]
[1645343299067,0.00266468,2647.8,2647.4,0.00539352]
[1645343299913,1.054,2648.0,2647.4,0.00539352]
[1645343300218,0.00266468,2647.7,2647.4,0.00539352]
[1645343301012,1.99938,2648.0,2647.4,0.00539352]
[1645343301213,0.00266468,2647.7,2647.4,0.00539352]
[1645343302215,1.99938,2648.0,2647.4,0.00539352]
[1645343302415,0.00269932,2647.7,2647.4,0.00539352]
[1645343303417,0.6,2648.0,2647.4,0.00539352]
[1645343303666,0.00269932,2647.7,2647.3,0.97786511]
[1645343304068,0.00269932,2647.7,2647.5,0.00898036]
[1645343304667,0.3,2647.9,2647.5,0.00898036]
[1645343304870,0.6,2648.2,2647.5,0.00898036]
[1645343305069,0.00269932,2647.7,2647.5,0.00898036]
[1645343306970,0.6,2648.2,2647.5,0.00898036]
[1645343307170,0.00269932,2647.7,2647.5,0.00898036]
[1645343308225,1.3,2648.2,2647.5,0.00898036]
[1645343308425,0.00269932,2647.7,2647.5,0.00898036]
[1645343309027,0.00269932,2647.7,2647.2,0.89132295]
[1645343309425,0.6,2648.2,2647.2,0.89132295]
[1645343309625,0.00266469,2647.6,2647.2,0.89132295]
[1645343309829,0.00266469,2647.6,2647.2,0.9884937]
[1645343310029,0.00266469,2647.6,2647.3,11.7387]
[1645343310630,8.26515,2648.7,2647.3,0.1887]
[1645343310830,0.00266469,2647.6,2647.3,0.1887]
[1645343311475,0.00266469,2647.6,2647.2,0.1887]
[1645343311871,0.94515,2648.7,2647.5,0.87021281]
[1645343312173,0.00266469,2647.6,2647.2,0.1887]
[1645343312975,0.9453,2648.3,2647.2,0.1887]
[1645343313177,0.00266469,2647.5,2647.1,1.1357]
[1645343313371,0.00266469,2647.5,2647.2,1.02892913]
[1645343314071,0.00354074,2647.5,2647.2,1.02892913]
[1645343314271,0.00087605,2647.5,2647.2,1.02892913]
[1645343314471,0.00354836,2647.5,2647.2,1.02892913]
[1645343315331,0.00087605,2647.5,2647.2,1.02892913]
[1645343315835,0.00354836,2647.5,2647.2,1.02892913]
[1645343316433,0.00354836,2647.5,2647.3,1.60613101]
[1645343316632,0.00087605,2647.5,2647.2,1.02892913]
[1645343316833,0.00354836,2647.5,2647.2,1.02892913]
[1645343317034,0.00354836,2647.5,2647.3,1.60612484]
[1645343317238,0.00354836,2647.5,2647.3,13.15612484]
[1645343317440,0.00354836,2647.5,2647.3,11.55]
[1645343317939,0.00087605,2647.5,2647.3,11.55]
[1645343318139,0.00354669,2647.5,2647.3,11.55]
[1645343318965,0.00087605,2647.5,2647.3,11.55]
[1645343319166,1.0,2648.6,2647.8,0.93990507]
[1645343319366,1.3,2648.6,2647.8,0.93990507]
[1645343319574,1.3,2648.6,2647.5,0.00899319]
[1645343320370,0.0026706,2648.2,2647.5,0.00899319]
[1645343320669,0.0026706,2648.2,2647.7,1.18504948]
[1645343321469,1.3,2648.6,2647.7,1.18504948]
[1645343321670,0.00267098,2648.1,2647.7,1.18504948]
[1645343321872,0.00267098,2648.1,2647.5,0.00899319]
[1645343322268,1.29767098,2648.6,2647.5,0.00899319]
[1645343322719,0.94527,2648.4,2647.5,0.00899319]
[1645343322919,1.29767098,2648.6,2647.7,0.86831762]
[1645343323322,1.29767098,2648.6,2647.5,0.00899319]
[1645343323525,1.89063,2648.5,2647.5,0.00899319]
[1645343323724,2.19063,2648.5,2647.5,0.00899319]
[1645343324025,2.19063,2648.5,2647.1,1.1357]
[1645343324225,3.19063,2648.5,2647.2,1.60618996]
[1645343324423,0.94527,2648.4,2647.5,1.12005445]
[1645343324921,2.24527,2648.4,2647.5,1.12005445]
[1645343326466,0.00267683,2648.2,2647.5,1.12005445]
[1645343327166,0.00267683,2648.2,2647.1,1.1357]
[1645343327367,2.24527,2648.4,2647.2,1.60622078]
[1645343327772,0.00267673,2648.2,2647.2,1.60622078]
[1645343328071,0.00267673,2648.2,2647.5,0.92392052]
[1645343328673,0.3,2648.4,2647.5,0.92392052]
[1645343328871,0.00267673,2648.2,2647.5,0.92392052]
[1645343329917,0.3,2648.5,2647.5,0.92392052]
[1645343330115,0.00267673,2648.2,2647.5,0.92392052]
[1645343331018,0.3,2648.5,2647.5,0.92392052]
[1645343331418,0.00266889,2648.2,2647.5,0.92392052]
[1645343331817,0.00266889,2648.2,2647.1,1.1357]
[1645343332221,0.3,2648.2,2647.1,1.1357]
[1645343332420,0.3,2648.2,2647.2,1.60625295]
[1645343332619,0.3026687,2648.2,2647.2,1.60625295]
[1645343332819,0.6026687,2648.2,2647.2,1.60625295]
[1645343333420,0.6,2648.2,2647.5,0.94474124]
[1645343333684,0.30266874,2648.2,2647.5,0.94474124]
[1645343334671,0.3,2648.2,2647.5,0.94474124]
[1645343334969,0.00267061,2648.2,2647.1,1.1357]
[1645343335169,0.00267061,2648.2,2647.2,1.60618333]
[1645343335770,0.3,2648.3,2647.2,1.60618333]
[1645343335972,0.3,2648.3,2647.4,0.94938668]
[1645343336172,0.00267047,2648.2,2647.5,1.60618333]
[1645343336774,0.00267047,2648.2,2647.4,0.94938668]
[1645343336974,0.3,2648.3,2647.4,0.94938668]
[1645343337417,0.00267061,2648.2,2647.4,0.94938668]
[1645343338317,1.054,2648.4,2647.4,0.94938668]
[1645343338518,0.00267019,2648.2,2647.4,0.94938668]
[1645343338931,0.00267019,2648.2,2647.5,1.60614599]
[1645343339122,0.00267019,2648.2,2647.5,1.61375918]
[1645343339324,0.00267019,2648.2,2647.5,0.00761319]
[1645343339521,1.054,2648.4,2647.5,0.00761319]
[1645343339721,0.00267023,2648.2,2647.5,0.00761319]
[1645343340724,1.054,2648.4,2647.5,0.00761319]
[1645343341177,0.00267023,2648.2,2647.5,0.00761319]
[1645343341885,0.3,2648.3,2647.5,0.00761319]
[1645343342085,0.00267389,2648.2,2647.5,0.00761319]
[1645343343078,1.054,2648.4,2647.5,0.00761319]
[1645343343278,0.00267389,2648.2,2647.5,0.00761319]
[1645343343978,0.00267389,2648.2,2647.4,1.04392126]
[1645343344182,0.3,2648.3,2647.4,1.04392126]
[1645343344579,0.00267389,2648.2,2647.5,1.60610101]
[1645343345422,0.00267389,2648.2,2647.4,1.04392126]
[1645343345423,0.3,2648.3,2647.4,1.04392126]
[1645343345625,0.0024243,2648.2,2647.4,1.04392126]
[1645343346026,0.0024243,2648.2,2647.4,1.04293964]
[1645343346224,0.0024243,2648.2,2647.5,1.60611808]
[1645343346525,0.0024243,2648.2,2647.4,1.04293964]
[1645343346728,0.3,2648.3,2647.5,1.60611365]
[1645343346925,0.0024243,2648.2,2647.5,1.60611365]
[1645343347925,1.054,2648.4,2647.5,1.60611365]
[1645343348126,0.0024243,2648.2,2647.5,1.60611365]
[1645343348973,0.3,2648.3,2647.5,1.60611365]
[1645343349175,0.754,2648.4,2647.4,1.04293964]
[1645343349378,0.754,2648.4,2647.5,1.60610881]
[1645343349379,0.00242431,2648.2,2647.5,1.60610881]
[1645343350272,0.3,2648.3,2647.5,1.60610881]
[1645343350476,0.00244116,2648.2,2647.5,1.60610881]
[1645343350874,0.00244116,2648.2,2647.8,0.94933935]
[1645343351373,0.3,2648.3,2647.8,0.94933935]
[1645343351573,0.3,2648.6,2647.9,1.60596169]
[1645343351772,1.0,2648.8,2647.9,1.60596169]
[1645343351773,0.00244129,2648.2,2647.9,1.60596169]
[1645343352625,0.3,2648.8,2647.9,1.60596169]
[1645343352626,3.8,2648.8,2647.9,1.60596169]
[1645343352826,0.00244133,2648.2,2647.6,1.233]
[1645343353026,0.00244133,2648.2,2647.7,1.60596694]
[1645343353927,0.3,2648.5,2647.7,2.50860052]
[1645343354132,0.00243982,2648.2,2647.8,1.60596694]
[1645343355129,3.8,2648.5,2647.8,1.60596694]
[1645343355329,1.0,2648.4,2647.6,4.933]
[1645343355529,0.00243986,2648.2,2647.6,4.933]
[1645343356196,0.3,2648.5,2647.7,2.7631154]
[1645343356683,0.3,2648.5,2647.6,4.933]
[1645343356684,0.00243977,2648.2,2647.6,4.933]
[1645343356883,0.00243977,2648.2,2647.7,1.60605109]
[1645343357282,0.00243977,2648.2,2647.6,4.933]
[1645343357485,0.3,2648.5,2647.7,1.60604928]
[1645343357687,0.3,2648.5,2647.8,1.02697885]
[1645343357688,0.00243994,2648.2,2647.8,1.02697885]
[1645343358586,0.3,2648.5,2647.6,4.933]
[1645343358786,0.3,2648.5,2647.7,1.60605193]
[1645343358988,0.00243999,2648.2,2647.7,1.60605193]
[1645343359690,0.00243999,2648.2,2648.0,1.16277632]
[1645343359920,0.3,2648.5,2648.0,1.16277632]
[1645343360119,0.00243994,2648.2,2648.0,1.16277632]
[1645343360526,3.994e-05,2648.2,2648.0,1.16277632]
[1645343360722,3.994e-05,2648.2,2648.1,13.15575887]
[1645343361122,7.32,2649.3,2648.2,0.0008]
[1645343361322,7.32,2649.3,2648.3,11.55]
[1645343361523,7.32,2649.3,2648.5,11.55]
[1645343361820,7.32,2649.3,2648.9,1.17431587]
[1645343362023,0.0156378,2649.5,2648.6,11.55]
[1645343362227,0.0156378,2649.5,2648.7,1.60538242]
[1645343362421,0.0156378,2649.5,2648.3,21.8676]
[1645343362621,0.0156378,2649.5,2648.5,11.55]
[1645343362823,7.32,2649.8,2648.5,12.7441]
[1645343362824,0.0156378,2649.7,2648.5,12.7441]
[1645343363222,0.0156378,2649.7,2649.0,1.02628096]
[1645343363421,0.0156378,2649.7,2648.6,6.567]
[1645343363669,1.0156378,2649.7,2648.6,6.567]
[1645343363868,0.3156378,2649.7,2648.6,6.567]
[1645343364068,0.6156378,2649.7,2648.6,6.567]
[1645343364270,0.3156378,2649.7,2648.6,6.567]
[1645343364467,0.0156378,2649.7,2648.6,6.567]
[1645343364667,0.0156378,2649.8,2648.6,7.52765177]
[1645343364872,0.00254349,2649.3,2648.6,7.52765177]
[1645343365468,0.00254349,2649.3,2649.0,0.95506414]
[1645343365867,0.0156378,2649.6,2649.0,0.95506414]
[1645343366067,0.6,2649.7,2649.0,0.95506414]
[1645343366270,0.00254349,2649.3,2649.0,0.95506414]
[1645343366868,0.00254349,2649.3,2649.1,3.5]
[1645343367068,0.0156378,2649.8,2649.1,3.5]
[1645343367535,0.00254349,2649.3,2649.0,0.95506414]
[1645343368327,0.0156378,2649.8,2649.0,0.95506414]
[1645343368829,0.00270465,2649.3,2649.0,0.95506414]
[1645343369233,0.00270465,2649.3,2648.8,11.55]
[1645343369430,0.0156378,2649.8,2648.9,3.5]
[1645343369627,0.0156378,2649.8,2648.7,3.5]
[1645343369826,0.00270465,2649.3,2648.7,3.5]
[1645343370231,0.00270465,2649.3,2649.1,1.02574578]
[1645343370632,0.0156378,2649.8,2649.1,1.02574578]
[1645343370828,0.0156378,2649.8,2649.1,4.52574578]
[1645343371030,0.0025436,2649.3,2649.1,4.52574578]
[1645343371271,0.0025436,2649.3,2649.1,1.02574578]
[1645343371874,0.0156378,2649.8,2649.0,3.7]
[1645343372070,0.0025436,2649.3,2649.0,3.7]
[1645343372271,0.0025436,2649.3,2649.1,3.5]
[1645343372672,0.0025436,2649.3,2649.0,3.7]
[1645343372871,0.0025436,2649.3,2649.2,1.06233464]
[1645343373170,0.0156378,2649.8,2649.2,1.06233464]
[1645343373371,0.0024536,2649.3,2649.2,1.06233464]
[1645343374176,5.36e-05,2649.3,2649.2,15.05]
[1645343374375,0.0156378,2650.0,2649.2,15.05]
[1645343374575,1.0,2650.9,2649.4,11.55]
[1645343374576,0.0156378,2650.3,2649.4,11.55]
[1645343374773,1.0,2650.9,2649.4,11.55]
[1645343374774,0.0156378,2650.8,2649.4,11.55]
[1645343375020,3.5156378,2650.8,2649.4,11.55]
[1645343375226,3.5156378,2650.8,2650.0,0.83702115]
[1645343375423,1.3,2650.7,2649.5,17.7429]
[1645343375620,1.2656378,2650.7,2649.6,23.5]
[1645343375823,0.2656378,2650.7,2649.6,23.5]
[1645343376022,0.2656378,2650.7,2649.7,3.5]
[1645343376224,1.3,2650.9,2649.7,3.5]
[1645343376425,1.3,2650.9,2650.2,0.9820929]
[1645343376826,1.0,2650.9,2650.2,0.9820929]
[1645343377425,1.0,2651.3,2650.2,0.9820929]
[1645343378026,1.3,2651.3,2650.2,0.9820929]
[1645343378226,0.00270652,2650.9,2650.2,0.9820929]
[1645343379180,7.32,2651.4,2650.6,0.97094752]
[1645343379379,0.00254905,2650.7,2650.6,0.0406988]
[1645343379577,4.905e-05,2650.7,2650.6,0.0406988]
[1645343380177,4.905e-05,2650.7,2650.6,2.8940988]
[1645343380574,1.88813,2652.0,2650.6,2.8940988]
[1645343380777,1.8,2651.9,2650.8,1.11454897]
[1645343381177,2.8,2651.9,2650.8,1.11454897]
[1645343381378,1.5,2651.9,2650.8,1.11454897]
[1645343381576,1.5,2651.9,2650.9,3.5]
[1645343381777,1.5,2651.9,2650.8,1.11454897]
[1645343382425,4.49276273,2651.9,2650.8,1.11454897]
[1645343382724,5.09276273,2651.9,2650.8,1.11454897]
[1645343382929,1.0,2651.8,2650.8,1.11454897]
[1645343383127,0.00271569,2651.5,2650.8,1.11454897]
[1645343384035,1.94404,2651.8,2650.8,1.11454897]
[1645343384234,0.0027157,2651.3,2650.8,1.11454897]
[1645343384430,0.0027157,2651.3,2650.7,1.1811]
[1645343385027,0.01086113,2651.7,2650.7,1.1811]
[1645343385227,3.99276273,2651.8,2650.7,1.1811]
[1645343385531,0.00271571,2651.1,2650.7,2.28439385]
[1645343386376,3.99276273,2651.8,2650.7,1.1811]
[1645343386776,0.00271572,2651.0,2650.7,1.1811]
[1645343387575,3.99276273,2651.8,2650.7,1.1811]
[1645343387776,0.00271572,2651.0,2650.7,1.1811]
[1645343389922,4.93671273,2651.8,2650.7,1.1811]
[1645343390124,4.93671273,2651.8,2651.0,1.09252427]
[1645343390323,0.01085998,2651.7,2650.8,3.5]
[1645343390523,1.89878998,2651.7,2650.7,4.6811]
[1645343390727,0.3,2651.6,2650.7,4.6811]
[1645343390922,0.3,2651.6,2650.7,4.5811]
[1645343391326,0.00242023,2651.3,2650.7,4.5811]
[1645343391524,0.00242023,2651.3,2650.8,0.89441628]
[1645343391924,0.00242023,2651.3,2650.7,4.5811]
[1645343392327,0.00967941,2651.7,2650.7,4.5811]
[1645343392328,0.94396,2651.8,2650.7,16.1311]
[1645343392726,0.00242023,2651.1,2650.7,16.1311]
[1645343392926,0.00242023,2651.1,2650.7,1.0811]
[1645343393127,0.00242023,2651.1,2650.8,12.46709915]
[1645343393335,0.00967889,2651.7,2651.3,1.12676134]
[1645343393528,1.5,2651.9,2651.3,1.12676134]
[1645343393773,0.00913201,2651.7,2651.3,1.12676134]
[1645343394774,3.04382,2651.9,2651.1,0.00484046]
[1645343395176,1.0,2651.8,2651.1,0.00484046]
[1645343395572,3.0,2651.5,2651.1,0.00484046]
[1645343395773,3.0,2651.5,2651.1,0.9597927]
[1645343396172,0.00256627,2651.4,2651.1,0.9597927]
[1645343397275,3.0,2651.5,2651.1,0.00484046]
[1645343397276,4.54397,2651.5,2651.1,0.00484046]
[1645343397532,1.0,2651.4,2651.1,0.00484046]
[1645343397722,1.00256627,2651.4,2651.1,0.00484046]
[1645343397926,0.00256627,2651.4,2651.1,0.00484046]
[1645343398323,1.0,2651.4,2651.1,0.00484046]
[1645343398726,1.00256627,2651.4,2651.1,0.00484046]
[1645343399526,1.0,2651.4,2651.1,0.00484046]
[1645343399726,2.54397,2651.5,2651.1,0.00484046]
[1645343399927,0.00246943,2651.4,2651.1,0.00484046]
[1645343400727,2.54397,2651.5,2651.1,0.00484046]
[1645343400927,1.54397,2651.5,2651.1,0.00484046]
[1645343401172,1.00246943,2651.4,2651.1,0.00484046]
[1645343401774,3.50246943,2651.4,2651.1,0.00484046]
[1645343402070,1.0,2651.4,2651.1,0.00484046]
[1645343402270,0.00246943,2651.4,2651.1,0.00484046]
[1645343403175,2.54397,2651.5,2651.1,0.00484046]
[1645343403471,1.00247593,2651.4,2651.1,0.00484046]
[1645343403874,1.0,2651.4,2651.1,0.00484046]
[1645343404074,0.99262847,2651.4,2651.1,0.00484046]
[1645343404374,1.54397,2651.5,2651.1,0.00484046]
[1645343404375,1.54397,2651.5,2651.1,3.70484046]
[1645343404773,1.63008616,2651.5,2651.1,3.70484046]
[1645343405221,2.63008616,2651.5,2651.1,3.70484046]
[1645343405823,1.63008616,2651.5,2651.1,3.70484046]
[1645343406023,1.0,2651.4,2651.1,3.70484046]
[1645343406327,1.63008616,2651.5,2651.1,3.656179]
[1645343406524,1.63008616,2651.5,2651.1,2.656179]
[1645343406923,1.63008616,2651.5,2651.1,2.318579]
[1645343407124,1.63262221,2651.5,2651.1,2.318579]
[1645343407526,1.54650605,2651.5,2651.1,2.318579]
[1645343407925,1.54397,2651.5,2651.1,2.318579]
[1645343408326,2.95778723,2651.4,2651.1,2.318579]
[1645343408768,1.6,2651.3,2651.1,2.318579]
[1645343409373,0.6,2651.3,2651.1,2.318579]
[1645343409671,1.0,2651.4,2651.1,2.318579]
[1645343409870,1.54668743,2651.5,2651.1,2.318579]
[1645343410475,1.54397,2651.5,2651.1,2.318579]
[1645343410671,1.54668753,2651.5,2651.1,2.318579]
[1645343411580,1.54397,2651.5,2651.1,2.318579]
[1645343411773,1.54668753,2651.5,2651.1,2.318579]
[1645343412827,0.94397,2651.5,2651.1,2.318579]
[1645343413227,0.00271753,2651.5,2651.1,2.318579]
[1645343413424,0.00271753,2651.5,2651.4,1.18641073]
[1645343413829,0.00271753,2651.5,2651.1,2.318579]
[1645343414025,1.54383,2651.9,2651.1,2.318579]
[1645343414235,0.00271762,2651.6,2651.1,2.318579]
[1645343415027,0.00271762,2651.6,2651.3,0.99280167]
[1645343415226,1.54383,2651.9,2651.3,0.99280167]
[1645343415426,0.00271758,2651.5,2651.1,2.318579]
[1645343415829,0.94669758,2651.5,2651.1,2.318579]
[1645343416474,1.24398,2651.5,2651.1,2.318579]
[1645343416675,0.94669753,2651.5,2651.1,2.318579]
[1645343417278,0.00271753,2651.5,2651.1,2.318579]
[1645343418783,0.94398,2651.5,2651.1,2.318579]
[1645343418977,1.24398,2651.5,2651.1,2.318579]
[1645343419181,1.54669753,2651.5,2651.1,2.318579]
[1645343420029,1.54398,2651.5,2651.1,2.318579]
[1645343420428,1.54669753,2651.5,2651.1,2.318579]
[1645343421028,1.54669753,2651.5,2650.9,0.46795862]
[1645343421228,1.54669753,2651.5,2650.8,1.2307]
[1645343421229,1.54398,2651.5,2650.8,1.2307]
[1645343421428,1.54669753,2651.5,2650.8,1.2307]
[1645343421629,0.94669753,2651.5,2650.8,1.2307]
[1645343422231,0.94669753,2651.5,2651.0,0.97614697]
[1645343422428,0.94398,2651.5,2651.0,0.97614697]
[1645343422632,0.94669738,2651.5,2651.0,0.97614697]
[1645343422835,2.83203,2653.4,2651.6,44.5]
[1645343423073,18.18815232,2654.5,2651.8,6.5]
[1645343423243,0.576823,2654.8,2652.1,0.01293433]
[1645343423440,6.30893018,2655.7,2652.7,0.01212881]
[1645343423441,0.454,2655.7,2652.7,0.01212881]
[1645343423693,0.5,2653.4,2653.1,0.0123848]
[1645343423887,0.09872893,2655.4,2654.0,0.0128823]
[1645343424086,0.09872893,2655.4,2654.1,0.454]
[1645343424288,3.20378041,2656.0,2654.3,5.67]
[1645343424485,3.20378041,2656.0,2654.4,3.954]
[1645343424792,0.04206334,2655.9,2654.5,4.06815]
[1645343424989,0.04206334,2655.9,2654.7,0.9423134]
[1645343425284,0.04149492,2655.8,2654.9,0.86484359]
[1645343425487,0.04149492,2655.8,2654.9,3.5]
[1645343425684,1.06241173,2656.9,2654.9,3.5]
[1645343425685,0.04092649,2655.7,2654.9,3.5]
[1645343425886,0.04092649,2655.7,2655.0,1.6327]
[1645343426086,0.04035807,2655.6,2655.1,0.454]
[1645343426489,0.00254411,2655.4,2655.2,0.91899325]
[1645343426685,0.01017493,2655.8,2655.2,0.94225]
[1645343426885,0.01017493,2655.8,2655.1,0.454]
[1645343427084,0.04092649,2655.7,2655.1,0.454]
[1645343427532,0.04035807,2655.6,2655.1,0.454]
[1645343427734,0.04035807,2655.6,2655.0,1.1787]
[1645343427735,0.09831727,2655.6,2655.0,1.1787]
[1645343427931,0.09831727,2655.6,2654.5,3.5]
[1645343427932,0.0579592,2655.6,2654.5,3.5]
[1645343428131,0.0579592,2655.6,2654.4,4.6502]
[1645343428332,0.0579592,2655.6,2654.5,1.60174386]
[1645343428530,0.0579592,2655.6,2654.6,3.5]
[1645343428727,0.0579592,2655.6,2654.7,1.60174386]
[1645343428932,0.0579592,2655.6,2654.8,3.5]
[1645343429129,0.0579592,2655.6,2654.9,0.9422992]
[1645343429529,0.0579592,2655.6,2654.9,2.1304992]
[1645343429730,0.0579592,2655.6,2655.0,3.5]
[1645343430033,0.0579592,2655.6,2655.3,1.07284013]
[1645343430528,0.0579592,2655.6,2655.0,4.4423]
[1645343430730,0.0579592,2655.6,2654.9,0.1882]
[1645343430937,0.0579592,2655.6,2654.8,1.1851]
[1645343431380,0.05028627,2655.6,2654.9,44.5]
[1645343431581,0.00055859,2655.9,2655.3,0.01269005]
[1645343431782,0.00055859,2655.9,2655.3,1.07911943]
[1645343431981,0.04149492,2655.8,2655.3,1.26731943]
[1645343432179,3.5,2657.1,2655.8,0.12448474]
[1645343432381,1.0,2657.0,2655.8,0.12448474]
[1645343432583,1.3,2657.0,2655.9,0.91137029]